[Event "Titled Tuesday Blitz June 8 2021"]
[White "Ozates, Tuna"]
[Black "Indjic, Aleksandar"]
[WhiteFideId "6354521"]
[BlackFideId "911925"]
[WhiteElo "1872"]
[BlackElo "2643"]
[Result "0-1"]
[Round "01"]
[TimeControl "180+1"]
[Date "2021.06.08"]
[WhiteClock "0:00:02"]
[BlackClock "0:00:15"]

1. e4 {[%clk 0:03:00]}  Nc6 {[%clk 0:02:55]} 2. d4 {[%clk 0:03:00]}  e6 {[%clk 0:02:55]} 3. Nf3 {[%clk 0:02:55]}  d5 {[%clk 0:02:54]} 4. e5 {[%clk 0:02:55]}  f6 {[%clk 0:02:53]} 5. Bb5 {[%clk 0:02:55]}  Bd7 {[%clk 0:02:45]} 6. Bxc6 {[%clk 0:02:53]}  Bxc6 {[%clk 0:02:41]} 7. O-O {[%clk 0:02:50]}  Qe7 {[%clk 0:02:40]} 8. Re1 {[%clk 0:02:48]}  O-O-O {[%clk 0:02:39]} 9. b4 {[%clk 0:02:46]}  Qf7 {[%clk 0:02:36]} 10. c3 {[%clk 0:02:45]}  Ne7 {[%clk 0:02:27]} 11. a4 {[%clk 0:02:45]}  Ng6 {[%clk 0:02:20]} 12. b5 {[%clk 0:02:40]}  Bd7 {[%clk 0:02:20]} 13. Qb3 {[%clk 0:02:36]}  fxe5 {[%clk 0:02:19]} 14. dxe5 {[%clk 0:02:26]}  Nf4 {[%clk 0:02:17]} 15. a5 {[%clk 0:02:19]}  Bc5 {[%clk 0:02:13]} 16. Be3 {[%clk 0:02:14]}  Bxe3 {[%clk 0:02:12]} 17. Rxe3 {[%clk 0:02:13]}  Rhf8 {[%clk 0:02:01]} 18. Nbd2 {[%clk 0:02:11]}  g5 {[%clk 0:01:51]} 19. c4 {[%clk 0:02:03]}  g4 {[%clk 0:01:50]} 20. Nd4 {[%clk 0:02:02]}  Nh3+ {[%clk 0:01:47]} 21. gxh3 {[%clk 0:01:55]}  Qxf2+ {[%clk 0:01:45]} 22. Kh1 {[%clk 0:01:56]}  Qxd2 {[%clk 0:01:44]} 23. Rd3 {[%clk 0:01:49]}  Qf2 {[%clk 0:01:15]} 24. c5 {[%clk 0:01:42]}  gxh3 {[%clk 0:01:13]} 25. Rg1 {[%clk 0:01:29]}  Rg8 {[%clk 0:01:13]} 26. Qd1 {[%clk 0:01:14]}  Rg2 {[%clk 0:00:34]} 27. Rxh3 {[%clk 0:01:14]}  Rdg8 {[%clk 0:00:34]} 28. Rf1 {[%clk 0:01:09]}  Qb2 {[%clk 0:00:28]} 29. c6 {[%clk 0:01:03]}  bxc6 {[%clk 0:00:28]} 30. bxc6 {[%clk 0:01:03]}  Be8 {[%clk 0:00:28]} 31. Qd3 {[%clk 0:00:55]}  R2g6 {[%clk 0:00:24]} 32. Rg3 {[%clk 0:00:37]}  Rxg3 {[%clk 0:00:23]} 33. hxg3 {[%clk 0:00:37]}  Bg6 {[%clk 0:00:23]} 34. Qa6+ {[%clk 0:00:31]}  Kd8 {[%clk 0:00:23]} 35. Nxe6+ {[%clk 0:00:30]}  Ke7 {[%clk 0:00:23]} 36. Ng5 {[%clk 0:00:24]}  Qxe5 {[%clk 0:00:19]} 37. Qb7 {[%clk 0:00:18]}  h6 {[%clk 0:00:18]} 38. Nf3 {[%clk 0:00:17]}  Be4 {[%clk 0:00:18]} 39. Qb4+ {[%clk 0:00:14]}  Ke6 {[%clk 0:00:17]} 40. Qb3 {[%clk 0:00:08]}  Rxg3 {[%clk 0:00:16]} 41. Qb8 {[%clk 0:00:02]}  Qh5# {[%clk 0:00:15]} 0-1


[Site "https://www.chess.com"]

[Event "Titled Tuesday Blitz June 8 2021"]
[White "Perez Ponsa, Federico"]
[Black "Devaev, Alexander"]
[WhiteFideId "117927"]
[BlackFideId "4169395"]
[WhiteElo "2672"]
[BlackElo "2185"]
[Result "1-0"]
[Round "01"]
[TimeControl "180+1"]
[Date "2021.06.08"]
[WhiteClock "0:00:55"]
[BlackClock "0:00:01"]

1. e4 {[%clk 0:02:58]}  c6 {[%clk 0:02:59]} 2. d4 {[%clk 0:02:52]}  d5 {[%clk 0:03:00]} 3. exd5 {[%clk 0:02:52]}  cxd5 {[%clk 0:03:00]} 4. Bd3 {[%clk 0:02:52]}  Nc6 {[%clk 0:03:00]} 5. c3 {[%clk 0:02:53]}  g6 {[%clk 0:03:00]} 6. Nf3 {[%clk 0:02:47]}  Nh6 {[%clk 0:03:00]} 7. O-O {[%clk 0:02:47]}  Bg7 {[%clk 0:02:57]} 8. Re1 {[%clk 0:02:44]}  O-O {[%clk 0:02:57]} 9. Bf4 {[%clk 0:02:41]}  Bf5 {[%clk 0:02:56]} 10. Bf1 {[%clk 0:02:38]}  Bg4 {[%clk 0:02:25]} 11. Nbd2 {[%clk 0:02:22]}  Nf5 {[%clk 0:02:04]} 12. h3 {[%clk 0:02:20]}  Bxf3 {[%clk 0:02:03]} 13. Nxf3 {[%clk 0:02:21]}  Nd6 {[%clk 0:02:00]} 14. Qb3 {[%clk 0:02:20]}  e6 {[%clk 0:01:52]} 15. Bd3 {[%clk 0:02:13]}  Na5 {[%clk 0:01:49]} 16. Qb4 {[%clk 0:02:09]}  Nf5 {[%clk 0:01:31]} 17. Re2 {[%clk 0:02:05]}  Ne7 {[%clk 0:01:11]} 18. Bg5 {[%clk 0:02:00]}  Re8 {[%clk 0:01:02]} 19. Bb5 {[%clk 0:01:59]}  Nac6 {[%clk 0:00:59]} 20. Qb3 {[%clk 0:01:51]}  Qc7 {[%clk 0:00:52]} 21. Rae1 {[%clk 0:01:50]}  a6 {[%clk 0:00:51]} 22. Bd3 {[%clk 0:01:50]}  b5 {[%clk 0:00:52]} 23. Qd1 {[%clk 0:01:44]}  b4 {[%clk 0:00:48]} 24. h4 {[%clk 0:01:37]}  bxc3 {[%clk 0:00:48]} 25. bxc3 {[%clk 0:01:38]}  Na5 {[%clk 0:00:41]} 26. Rc2 {[%clk 0:01:38]}  Nc4 {[%clk 0:00:41]} 27. h5 {[%clk 0:01:35]}  Rac8 {[%clk 0:00:37]} 28. Nh2 {[%clk 0:01:26]}  Nf5 {[%clk 0:00:18]} 29. Ng4 {[%clk 0:01:25]}  a5 {[%clk 0:00:18]} 30. Nf6+ {[%clk 0:01:23]}  Bxf6 {[%clk 0:00:18]} 31. Bxf6 {[%clk 0:01:24]}  Ncd6 {[%clk 0:00:10]} 32. Qg4 {[%clk 0:01:16]}  Ne4 {[%clk 0:00:09]} 33. Rxe4 {[%clk 0:01:09]}  dxe4 {[%clk 0:00:09]} 34. Bxe4 {[%clk 0:01:10]}  Qb8 {[%clk 0:00:05]} 35. Rc1 {[%clk 0:00:56]}  Qb2 {[%clk 0:00:04]} 36. Rb1 {[%clk 0:00:56]}  Qxc3 {[%clk 0:00:04]} 37. Qg5 {[%clk 0:00:56]}  Qc2 {[%clk 0:00:01]} 38. Bxc2 {[%clk 0:00:55]}  Rxc2 {[%clk 0:00:01]} 39. hxg6 {[%clk 0:00:55]}  fxg6 {[%clk 0:00:01]} 40. Be5 {[%clk 0:00:55]} 1-0


[Site "https://www.chess.com"]

[Event "Titled Tuesday Blitz June 8 2021"]
[White "Petukhov, Dmitry"]
[Black "Goltsev, Dmitry"]
[WhiteFideId "4142748"]
[BlackFideId "24176710"]
[WhiteElo "2356"]
[BlackElo "2366"]
[Result "0-1"]
[Round "01"]
[TimeControl "180+1"]
[Date "2021.06.08"]
[WhiteClock "0:00:19"]
[BlackClock "0:00:09"]

1. e4 {[%clk 0:02:55]}  e6 {[%clk 0:02:59]} 2. d4 {[%clk 0:02:55]}  d5 {[%clk 0:03:00]} 3. e5 {[%clk 0:02:55]}  c5 {[%clk 0:02:59]} 4. c3 {[%clk 0:02:55]}  Nc6 {[%clk 0:02:59]} 5. Nf3 {[%clk 0:02:55]}  Nge7 {[%clk 0:03:00]} 6. a3 {[%clk 0:02:55]}  Nf5 {[%clk 0:03:00]} 7. b4 {[%clk 0:02:55]}  cxd4 {[%clk 0:02:59]} 8. cxd4 {[%clk 0:02:56]}  a6 {[%clk 0:02:58]} 9. Be3 {[%clk 0:02:54]}  Bd7 {[%clk 0:02:57]} 10. Bd3 {[%clk 0:02:53]}  g6 {[%clk 0:02:54]} 11. O-O {[%clk 0:02:52]}  Be7 {[%clk 0:02:52]} 12. Nc3 {[%clk 0:02:47]}  Rc8 {[%clk 0:02:51]} 13. Rc1 {[%clk 0:02:42]}  b5 {[%clk 0:02:48]} 14. Ne2 {[%clk 0:02:36]}  Qb6 {[%clk 0:02:44]} 15. Ng3 {[%clk 0:02:31]}  h6 {[%clk 0:02:23]} 16. Nxf5 {[%clk 0:02:25]}  exf5 {[%clk 0:02:20]} 17. Qe2 {[%clk 0:02:11]}  Be6 {[%clk 0:02:18]} 18. Rc2 {[%clk 0:02:07]}  Kd7 {[%clk 0:02:16]} 19. Rfc1 {[%clk 0:02:07]}  Rc7 {[%clk 0:02:15]} 20. a4 {[%clk 0:02:01]}  bxa4 {[%clk 0:02:13]} 21. Bxa6 {[%clk 0:02:00]}  Bxb4 {[%clk 0:02:01]} 22. Bb5 {[%clk 0:01:46]}  Rhc8 {[%clk 0:02:01]} 23. Bxa4 {[%clk 0:01:45]}  g5 {[%clk 0:01:55]} 24. Qb5 {[%clk 0:01:42]}  Qxb5 {[%clk 0:01:02]} 25. Bxb5 {[%clk 0:01:43]}  g4 {[%clk 0:01:01]} 26. Nd2 {[%clk 0:01:33]}  f4 {[%clk 0:00:59]} 27. Bxf4 {[%clk 0:01:27]}  Bf5 {[%clk 0:00:59]} 28. e6+ {[%clk 0:01:22]}  fxe6 {[%clk 0:00:57]} 29. Ra2 {[%clk 0:01:09]}  Bxd2 {[%clk 0:00:46]} 30. Bxd2 {[%clk 0:01:03]}  Ke7 {[%clk 0:00:39]} 31. Bf4 {[%clk 0:00:59]}  e5 {[%clk 0:00:35]} 32. dxe5 {[%clk 0:00:51]}  Nb4 {[%clk 0:00:32]} 33. Rxc7+ {[%clk 0:00:44]}  Rxc7 {[%clk 0:00:33]} 34. Ra1 {[%clk 0:00:45]}  Rb7 {[%clk 0:00:31]} 35. Bf1 {[%clk 0:00:41]}  h5 {[%clk 0:00:31]} 36. h3 {[%clk 0:00:37]}  gxh3 {[%clk 0:00:29]} 37. gxh3 {[%clk 0:00:36]}  Nc2 {[%clk 0:00:29]} 38. Ra6 {[%clk 0:00:32]}  Rb1 {[%clk 0:00:27]} 39. Kg2 {[%clk 0:00:29]}  Ne1+ {[%clk 0:00:26]} 40. Kg3 {[%clk 0:00:27]}  Be4 {[%clk 0:00:22]} 41. Bg5+ {[%clk 0:00:26]}  Kf8 {[%clk 0:00:22]} 42. e6 {[%clk 0:00:23]}  Rb3+ {[%clk 0:00:20]} 43. Kf4 {[%clk 0:00:21]}  Rf3+ {[%clk 0:00:18]} 44. Ke5 {[%clk 0:00:21]}  Rf5+ {[%clk 0:00:18]} 45. Kd6 {[%clk 0:00:21]}  Rxg5 {[%clk 0:00:15]} 46. e7+ {[%clk 0:00:21]}  Kf7 {[%clk 0:00:14]} 47. Ra8 {[%clk 0:00:20]}  Rg6+ {[%clk 0:00:11]} 48. Kd7 {[%clk 0:00:20]}  Bf5+ {[%clk 0:00:09]} 49. Kd8 {[%clk 0:00:19]}  Rg8+ {[%clk 0:00:09]} 0-1


[Site "https://www.chess.com"]

[Event "Titled Tuesday Blitz June 8 2021"]
[White "Rasulov, Vugar"]
[Black "Levine, Joseph"]
[WhiteFideId "13402390"]
[BlackFideId "30940346"]
[WhiteElo "2848"]
[BlackElo "2459"]
[Result "0-1"]
[Round "01"]
[TimeControl "180+1"]
[Date "2021.06.08"]
[WhiteClock "0:01:35"]
[BlackClock "0:01:15"]

1. e4 {[%clk 0:03:00]}  e6 {[%clk 0:02:58]} 2. d4 {[%clk 0:03:00]}  d5 {[%clk 0:02:58]} 3. Nc3 {[%clk 0:03:01]}  Nf6 {[%clk 0:02:56]} 4. e5 {[%clk 0:03:00]}  Nfd7 {[%clk 0:02:56]} 5. f4 {[%clk 0:03:01]}  c5 {[%clk 0:02:56]} 6. Nf3 {[%clk 0:03:01]}  Nc6 {[%clk 0:02:56]} 7. Be3 {[%clk 0:03:01]}  a6 {[%clk 0:02:56]} 8. Qd2 {[%clk 0:03:01]}  b5 {[%clk 0:02:55]} 9. dxc5 {[%clk 0:03:01]}  Bxc5 {[%clk 0:02:55]} 10. Bd3 {[%clk 0:02:59]}  Qb6 {[%clk 0:02:55]} 11. Bf2 {[%clk 0:02:58]}  b4 {[%clk 0:02:53]} 12. Na4 {[%clk 0:02:55]}  Bxf2+ {[%clk 0:02:53]} 13. Qxf2 {[%clk 0:02:56]}  Qa5 {[%clk 0:02:52]} 14. b3 {[%clk 0:02:56]}  Rb8 {[%clk 0:02:51]} 15. O-O {[%clk 0:02:52]}  g6 {[%clk 0:02:35]} 16. Kh1 {[%clk 0:02:50]}  Qd8 {[%clk 0:02:30]} 17. Nd4 {[%clk 0:02:42]}  Nxd4 {[%clk 0:02:27]} 18. Qxd4 {[%clk 0:02:43]}  a5 {[%clk 0:02:26]} 19. a3 {[%clk 0:02:41]}  Qc7 {[%clk 0:02:22]} 20. Qe3 {[%clk 0:02:34]}  Bb7 {[%clk 0:02:19]} 21. axb4 {[%clk 0:02:33]}  axb4 {[%clk 0:02:19]} 22. Qd4 {[%clk 0:02:30]}  Bc6 {[%clk 0:02:18]} 23. Nc5 {[%clk 0:02:30]}  Qb6 {[%clk 0:02:16]} 24. Ra6 {[%clk 0:02:23]}  Qxc5 {[%clk 0:02:12]} 25. Qxc5 {[%clk 0:02:23]}  Nxc5 {[%clk 0:02:13]} 26. Rxc6 {[%clk 0:02:24]}  Nxd3 {[%clk 0:02:07]} 27. cxd3 {[%clk 0:02:25]}  Kd7 {[%clk 0:02:08]} 28. Rd6+ {[%clk 0:02:24]}  Ke7 {[%clk 0:02:07]} 29. h3 {[%clk 0:02:21]}  Rhc8 {[%clk 0:02:07]} 30. Kh2 {[%clk 0:02:16]}  Rc3 {[%clk 0:02:06]} 31. Ra1 {[%clk 0:02:16]}  Rb7 {[%clk 0:02:06]} 32. Ra8 {[%clk 0:02:00]}  Rxb3 {[%clk 0:02:05]} 33. Rdd8 {[%clk 0:02:00]}  Rxd3 {[%clk 0:01:56]} 34. Re8+ {[%clk 0:01:58]}  Kd7 {[%clk 0:01:56]} 35. Rac8 {[%clk 0:01:58]}  Rc7 {[%clk 0:01:45]} 36. Rb8 {[%clk 0:01:52]}  b3 {[%clk 0:01:41]} 37. Rh8 {[%clk 0:01:47]}  h5 {[%clk 0:01:38]} 38. Rb6 {[%clk 0:01:46]}  Rdc3 {[%clk 0:01:30]} 39. Rf8 {[%clk 0:01:42]}  Ke7 {[%clk 0:01:28]} 40. Rfb8 {[%clk 0:01:37]}  Rc8 {[%clk 0:01:24]} 41. R8b7+ {[%clk 0:01:34]}  R3c7 {[%clk 0:01:23]} 42. Rxb3 {[%clk 0:01:35]}  Rxb7 {[%clk 0:01:23]} 43. Rxb7+ {[%clk 0:01:35]}  Kf8 {[%clk 0:01:23]} 44. Kg3 {[%clk 0:01:35]}  Rc3+ {[%clk 0:01:22]} 45. Kf2 {[%clk 0:01:36]}  Rc8 {[%clk 0:01:17]} 46. h4 {[%clk 0:01:36]}  Re8 {[%clk 0:01:15]} 47. Ke3 {[%clk 0:01:35]}  Re7 {[%clk 0:01:16]} 48. Rb8+ {[%clk 0:01:34]}  Re8 {[%clk 0:01:15]} 49. g3 {[%clk 0:01:35]}  Rxb8 {[%clk 0:01:15]} 0-1


[Site "https://www.chess.com"]

[Event "Titled Tuesday Blitz June 8 2021"]
[White "Reprintsev, Alexander"]
[Black "Terry, Renato"]
[WhiteFideId "14100541"]
[BlackFideId "3803457"]
[WhiteElo "2126"]
[BlackElo "2581"]
[Result "1-0"]
[Round "01"]
[TimeControl "180+1"]
[Date "2021.06.08"]
[WhiteClock "0:00:41"]
[BlackClock "0:00:02"]

1. e4 {[%clk 0:02:59]}  e6 {[%clk 0:02:52]} 2. Qe2 {[%clk 0:02:58]}  c5 {[%clk 0:02:52]} 3. b3 {[%clk 0:02:58]}  Nc6 {[%clk 0:02:52]} 4. Bb2 {[%clk 0:02:59]}  Nf6 {[%clk 0:02:52]} 5. e5 {[%clk 0:02:58]}  Nd5 {[%clk 0:02:48]} 6. Nf3 {[%clk 0:02:58]}  Be7 {[%clk 0:02:47]} 7. g3 {[%clk 0:02:59]}  O-O {[%clk 0:02:42]} 8. Bg2 {[%clk 0:02:59]}  f5 {[%clk 0:02:27]} 9. O-O {[%clk 0:02:55]}  Qe8 {[%clk 0:02:21]} 10. c4 {[%clk 0:02:55]}  Ndb4 {[%clk 0:02:16]} 11. d4 {[%clk 0:02:53]}  cxd4 {[%clk 0:02:15]} 12. a3 {[%clk 0:02:39]}  Na6 {[%clk 0:01:55]} 13. b4 {[%clk 0:02:39]}  Nc7 {[%clk 0:01:45]} 14. Nbd2 {[%clk 0:02:38]}  a5 {[%clk 0:01:39]} 15. b5 {[%clk 0:02:38]}  Nd8 {[%clk 0:01:39]} 16. Nxd4 {[%clk 0:02:35]}  f4 {[%clk 0:01:35]} 17. Rad1 {[%clk 0:02:29]}  Qg6 {[%clk 0:01:33]} 18. Qe4 {[%clk 0:02:14]}  Qh6 {[%clk 0:01:32]} 19. N2b3 {[%clk 0:02:04]}  a4 {[%clk 0:01:31]} 20. Nc1 {[%clk 0:02:03]}  Nf7 {[%clk 0:01:23]} 21. h4 {[%clk 0:02:00]}  g5 {[%clk 0:01:13]} 22. Nd3 {[%clk 0:01:59]}  gxh4 {[%clk 0:01:05]} 23. Nxf4 {[%clk 0:01:55]}  Ng5 {[%clk 0:01:04]} 24. Qe3 {[%clk 0:01:52]}  h3 {[%clk 0:01:02]} 25. Be4 {[%clk 0:01:41]}  Ne8 {[%clk 0:00:52]} 26. Kh2 {[%clk 0:01:39]}  Nxe4 {[%clk 0:00:47]} 27. Qxe4 {[%clk 0:01:39]}  Ng7 {[%clk 0:00:47]} 28. Bc1 {[%clk 0:01:35]}  Bg5 {[%clk 0:00:41]} 29. c5 {[%clk 0:01:29]}  Ra5 {[%clk 0:00:29]} 30. Bd2 {[%clk 0:01:28]}  Ra8 {[%clk 0:00:14]} 31. Be3 {[%clk 0:01:27]}  Rb8 {[%clk 0:00:10]} 32. Nxh3 {[%clk 0:01:22]}  Bxe3 {[%clk 0:00:09]} 33. Qxe3 {[%clk 0:01:22]}  Qh5 {[%clk 0:00:07]} 34. Qg5 {[%clk 0:01:18]}  Qf7 {[%clk 0:00:05]} 35. f4 {[%clk 0:01:17]}  b6 {[%clk 0:00:05]} 36. c6 {[%clk 0:01:17]}  Ra8 {[%clk 0:00:05]} 37. Qh6 {[%clk 0:01:11]}  Qe7 {[%clk 0:00:02]} 38. Ng5 {[%clk 0:01:09]}  Ne8 {[%clk 0:00:02]} 39. cxd7 {[%clk 0:01:00]}  Bxd7 {[%clk 0:00:02]} 40. Nc6 {[%clk 0:01:01]}  Bxc6 {[%clk 0:00:03]} 41. bxc6 {[%clk 0:01:01]}  Ra7 {[%clk 0:00:03]} 42. Rd4 {[%clk 0:00:57]}  Qc5 {[%clk 0:00:01]} 43. Rd7 {[%clk 0:00:55]}  Qc2+ {[%clk 0:00:01]} 44. Kg1 {[%clk 0:00:52]}  Rxd7 {[%clk 0:00:01]} 45. cxd7 {[%clk 0:00:52]}  Ng7 {[%clk 0:00:02]} 46. Nxe6 {[%clk 0:00:41]} 1-0


[Site "https://www.chess.com"]

[Event "Titled Tuesday Blitz June 8 2021"]
[White "Richter, Nils"]
[Black "SpeedofLight0"]
[WhiteFideId "12990809"]
[WhiteElo "2289"]
[BlackElo "2741"]
[Result "0-1"]
[Round "01"]
[TimeControl "180+1"]
[Date "2021.06.08"]
[WhiteClock "0:00:03"]
[BlackClock "0:00:18"]

1. d4 {[%clk 0:02:57]}  Nf6 {[%clk 0:02:58]} 2. Nf3 {[%clk 0:02:58]}  d5 {[%clk 0:02:53]} 3. c4 {[%clk 0:02:56]}  e6 {[%clk 0:02:50]} 4. g3 {[%clk 0:02:56]}  dxc4 {[%clk 0:02:42]} 5. Bg2 {[%clk 0:02:56]}  a6 {[%clk 0:02:40]} 6. O-O {[%clk 0:02:55]}  Nc6 {[%clk 0:02:40]} 7. e3 {[%clk 0:02:51]}  Rb8 {[%clk 0:02:39]} 8. a4 {[%clk 0:02:50]}  Bd7 {[%clk 0:02:35]} 9. a5 {[%clk 0:02:46]}  Bb4 {[%clk 0:02:32]} 10. Bd2 {[%clk 0:02:46]}  Qe7 {[%clk 0:02:30]} 11. Ne5 {[%clk 0:02:43]}  Nxe5 {[%clk 0:02:07]} 12. dxe5 {[%clk 0:02:42]}  Nd5 {[%clk 0:02:05]} 13. Qc2 {[%clk 0:02:37]}  O-O {[%clk 0:01:57]} 14. Rd1 {[%clk 0:02:31]}  Bb5 {[%clk 0:01:55]} 15. Na3 {[%clk 0:02:27]}  c3 {[%clk 0:01:47]} 16. Nxb5 {[%clk 0:01:57]}  cxd2 {[%clk 0:01:42]} 17. Nc3 {[%clk 0:01:52]}  Nxc3 {[%clk 0:01:33]} 18. bxc3 {[%clk 0:01:52]}  Qc5 {[%clk 0:01:33]} 19. Qxd2 {[%clk 0:01:33]}  Bxc3 {[%clk 0:01:30]} 20. Qc2 {[%clk 0:01:31]}  Qxe5 {[%clk 0:01:27]} 21. Rab1 {[%clk 0:01:26]}  b5 {[%clk 0:01:21]} 22. axb6 {[%clk 0:01:21]}  cxb6 {[%clk 0:01:20]} 23. Rb3 {[%clk 0:01:06]}  Ba5 {[%clk 0:01:17]} 24. Qe2 {[%clk 0:00:53]}  b5 {[%clk 0:01:10]} 25. Ra3 {[%clk 0:00:53]}  b4 {[%clk 0:00:54]} 26. Ra4 {[%clk 0:00:48]}  b3 {[%clk 0:00:50]} 27. Qxa6 {[%clk 0:00:45]}  Bc3 {[%clk 0:00:45]} 28. Qd3 {[%clk 0:00:36]}  b2 {[%clk 0:00:41]} 29. Rb1 {[%clk 0:00:33]}  Rfd8 {[%clk 0:00:39]} 30. Qe4 {[%clk 0:00:23]}  Qb5 {[%clk 0:00:38]} 31. Bf1 {[%clk 0:00:20]}  Qb3 {[%clk 0:00:35]} 32. Ra7 {[%clk 0:00:05]}  Bf6 {[%clk 0:00:23]} 33. Qc4 {[%clk 0:00:03]}  Qxc4 {[%clk 0:00:18]} 34. Bxc4 {[%clk 0:00:04]}  Rbc8 {[%clk 0:00:19]} 35. Bd3 {[%clk 0:00:03]}  Rxd3 {[%clk 0:00:18]} 0-1


[Site "https://www.chess.com"]

[Event "Titled Tuesday Blitz June 8 2021"]
[White "Samsonkin, Artiom"]
[Black "Marcziter, Dmitrii"]
[WhiteFideId "13503111"]
[BlackFideId "13900765"]
[WhiteElo "2513"]
[BlackElo "2155"]
[Result "1-0"]
[Round "01"]
[TimeControl "180+1"]
[Date "2021.06.08"]
[WhiteClock "0:01:35"]
[BlackClock "0:01:32"]

1. e4 {[%clk 0:03:00]}  c5 {[%clk 0:02:58]} 2. Nf3 {[%clk 0:03:00]}  a6 {[%clk 0:02:58]} 3. Nc3 {[%clk 0:03:00]}  Nc6 {[%clk 0:02:57]} 4. d4 {[%clk 0:02:59]}  cxd4 {[%clk 0:02:57]} 5. Nxd4 {[%clk 0:03:00]}  d6 {[%clk 0:02:54]} 6. Bc4 {[%clk 0:02:54]}  Nf6 {[%clk 0:02:52]} 7. Nxc6 {[%clk 0:02:53]}  bxc6 {[%clk 0:02:50]} 8. e5 {[%clk 0:02:54]}  Ng8 {[%clk 0:02:27]} 9. O-O {[%clk 0:02:42]}  d5 {[%clk 0:02:23]} 10. Nxd5 {[%clk 0:02:33]}  cxd5 {[%clk 0:02:04]} 11. Bxd5 {[%clk 0:02:34]}  Bd7 {[%clk 0:01:55]} 12. Qf3 {[%clk 0:02:30]}  e6 {[%clk 0:01:52]} 13. Bxa8 {[%clk 0:02:30]}  Ne7 {[%clk 0:01:44]} 14. Rd1 {[%clk 0:02:25]}  Qc7 {[%clk 0:01:43]} 15. Be4 {[%clk 0:02:15]}  Ng6 {[%clk 0:01:39]} 16. Rxd7 {[%clk 0:01:46]}  Kxd7 {[%clk 0:01:37]} 17. Qxf7+ {[%clk 0:01:42]}  Be7 {[%clk 0:01:35]} 18. Bxg6 {[%clk 0:01:40]}  hxg6 {[%clk 0:01:34]} 19. Bg5 {[%clk 0:01:38]}  Re8 {[%clk 0:01:32]} 20. Rd1+ {[%clk 0:01:35]}  Kc8 {[%clk 0:01:32]} 21. Qxe8+ {[%clk 0:01:35]} 1-0


[Site "https://www.chess.com"]

[Event "Titled Tuesday Blitz June 8 2021"]
[White "Sanal, Vahap"]
[Black "Kozak, Antoni"]
[WhiteFideId "6300545"]
[BlackFideId "21832030"]
[WhiteElo "2507"]
[BlackElo "2289"]
[Result "0-1"]
[Round "01"]
[TimeControl "180+1"]
[Date "2021.06.08"]
[WhiteClock "0:00:12"]
[BlackClock "0:00:16"]

1. e4 {[%clk 0:02:54]}  c5 {[%clk 0:02:48]} 2. Nf3 {[%clk 0:02:52]}  Nc6 {[%clk 0:02:48]} 3. c3 {[%clk 0:02:50]}  d5 {[%clk 0:02:44]} 4. exd5 {[%clk 0:02:49]}  Qxd5 {[%clk 0:02:45]} 5. d4 {[%clk 0:02:50]}  Nf6 {[%clk 0:02:42]} 6. Na3 {[%clk 0:02:47]}  cxd4 {[%clk 0:02:40]} 7. Bc4 {[%clk 0:02:45]}  Qd8 {[%clk 0:02:33]} 8. Nb5 {[%clk 0:02:32]}  Bd7 {[%clk 0:02:12]} 9. Bf4 {[%clk 0:02:24]}  Rc8 {[%clk 0:02:11]} 10. O-O {[%clk 0:02:21]}  a6 {[%clk 0:02:06]} 11. Nbxd4 {[%clk 0:02:15]}  e6 {[%clk 0:01:51]} 12. Bb3 {[%clk 0:02:03]}  Bc5 {[%clk 0:01:43]} 13. Be3 {[%clk 0:01:56]}  Nxd4 {[%clk 0:01:41]} 14. Nxd4 {[%clk 0:01:56]}  O-O {[%clk 0:01:40]} 15. Qf3 {[%clk 0:01:53]}  Qc7 {[%clk 0:01:33]} 16. Rad1 {[%clk 0:01:39]}  e5 {[%clk 0:01:26]} 17. Nf5 {[%clk 0:01:37]}  e4 {[%clk 0:01:26]} 18. Qh3 {[%clk 0:01:23]}  Qe5 {[%clk 0:01:10]} 19. g4 {[%clk 0:01:13]}  h5 {[%clk 0:00:38]} 20. Bd4 {[%clk 0:01:05]}  Bxd4 {[%clk 0:00:37]} 21. cxd4 {[%clk 0:01:05]}  Qf4 {[%clk 0:00:35]} 22. Ne7+ {[%clk 0:01:02]}  Kh7 {[%clk 0:00:33]} 23. Nxc8 {[%clk 0:01:03]}  Bxg4 {[%clk 0:00:33]} 24. Qg3 {[%clk 0:00:55]}  Qxg3+ {[%clk 0:00:31]} 25. hxg3 {[%clk 0:00:56]}  Bxd1 {[%clk 0:00:32]} 26. Rxd1 {[%clk 0:00:57]}  Rxc8 {[%clk 0:00:32]} 27. Bxf7 {[%clk 0:00:57]}  Rc7 {[%clk 0:00:28]} 28. Bb3 {[%clk 0:00:56]}  Ne8 {[%clk 0:00:24]} 29. Kf1 {[%clk 0:00:44]}  Nd6 {[%clk 0:00:23]} 30. Ke2 {[%clk 0:00:45]}  Kg6 {[%clk 0:00:23]} 31. Ke3 {[%clk 0:00:44]}  Kf6 {[%clk 0:00:22]} 32. Rh1 {[%clk 0:00:42]}  g6 {[%clk 0:00:22]} 33. Ke2 {[%clk 0:00:41]}  Nf5 {[%clk 0:00:21]} 34. Rd1 {[%clk 0:00:41]}  Rd7 {[%clk 0:00:20]} 35. d5 {[%clk 0:00:41]}  Ke5 {[%clk 0:00:19]} 36. Kf1 {[%clk 0:00:22]}  Nd4 {[%clk 0:00:18]} 37. Rc1 {[%clk 0:00:22]}  Nxb3 {[%clk 0:00:17]} 38. axb3 {[%clk 0:00:22]}  Rxd5 {[%clk 0:00:18]} 39. Rc2 {[%clk 0:00:23]}  Rb5 {[%clk 0:00:17]} 40. Rc3 {[%clk 0:00:24]}  Rd5 {[%clk 0:00:18]} 41. Ke2 {[%clk 0:00:24]}  g5 {[%clk 0:00:16]} 42. Ke3 {[%clk 0:00:24]}  Rd3+ {[%clk 0:00:15]} 43. Rxd3 {[%clk 0:00:23]}  exd3 {[%clk 0:00:16]} 44. Kxd3 {[%clk 0:00:23]}  Kf5 {[%clk 0:00:17]} 45. Ke3 {[%clk 0:00:22]}  h4 {[%clk 0:00:17]} 46. Kf3 {[%clk 0:00:21]}  g4+ {[%clk 0:00:17]} 47. Kg2 {[%clk 0:00:20]}  h3+ {[%clk 0:00:17]} 48. Kh2 {[%clk 0:00:20]}  Ke4 {[%clk 0:00:18]} 49. Kg1 {[%clk 0:00:13]}  Kf3 {[%clk 0:00:18]} 50. b4 {[%clk 0:00:13]}  b6 {[%clk 0:00:17]} 51. b3 {[%clk 0:00:12]}  b5 {[%clk 0:00:16]} 52. Kh1 {[%clk 0:00:12]} 0-1


[Site "https://www.chess.com"]

[Event "Titled Tuesday Blitz June 8 2021"]
[White "Saraci, Nderim"]
[Black "Suvorov, Luca"]
[WhiteFideId "6351921"]
[BlackFideId "12977071"]
[WhiteElo "2820"]
[BlackElo "2444"]
[Result "0-1"]
[Round "01"]
[TimeControl "180+1"]
[Date "2021.06.08"]
[WhiteClock "0:00:01"]
[BlackClock "0:00:05"]

1. d4 {[%clk 0:02:53]}  Nf6 {[%clk 0:02:59]} 2. Nf3 {[%clk 0:02:52]}  e6 {[%clk 0:02:59]} 3. c4 {[%clk 0:02:52]}  a6 {[%clk 0:02:58]} 4. Nc3 {[%clk 0:02:49]}  d5 {[%clk 0:02:56]} 5. cxd5 {[%clk 0:02:47]}  exd5 {[%clk 0:02:57]} 6. Bf4 {[%clk 0:02:45]}  Bd6 {[%clk 0:02:50]} 7. e3 {[%clk 0:02:45]}  Bxf4 {[%clk 0:02:46]} 8. exf4 {[%clk 0:02:45]}  O-O {[%clk 0:02:47]} 9. Be2 {[%clk 0:02:45]}  Bg4 {[%clk 0:02:10]} 10. O-O {[%clk 0:02:43]}  Re8 {[%clk 0:02:08]} 11. h3 {[%clk 0:02:34]}  Bxf3 {[%clk 0:01:59]} 12. Bxf3 {[%clk 0:02:35]}  Nc6 {[%clk 0:01:58]} 13. Qd2 {[%clk 0:01:46]}  Qd6 {[%clk 0:01:50]} 14. Rac1 {[%clk 0:01:40]}  Rad8 {[%clk 0:01:48]} 15. Rfd1 {[%clk 0:01:21]}  Ne4 {[%clk 0:01:18]} 16. Bxe4 {[%clk 0:01:01]}  dxe4 {[%clk 0:01:12]} 17. Qe3 {[%clk 0:00:52]}  Nxd4 {[%clk 0:00:50]} 18. Nxe4 {[%clk 0:00:12]}  Qd5 {[%clk 0:00:48]} 19. Nc3 {[%clk 0:00:02]}  Qc4 {[%clk 0:00:18]} 20. Qg3 {[%clk 0:00:02]}  g6 {[%clk 0:00:14]} 21. Kh2 {[%clk 0:00:03]}  c5 {[%clk 0:00:12]} 22. Ne4 {[%clk 0:00:02]}  Qe6 {[%clk 0:00:08]} 23. Nxc5 {[%clk 0:00:03]}  Qb6 {[%clk 0:00:06]} 24. Rd2 {[%clk 0:00:01]}  Nf5 {[%clk 0:00:05]} 0-1


[Site "https://www.chess.com"]